[Event "FISU WUMSCC Men 2024"]
[Site "Entebbe"]
[Date "2024.06.25"]
[Round "2.1"]
[White "Horak, Martin"]
[Black "Janik, Igor"]
[Result "1-0"]
[ECO "B11"]
[WhiteElo "2333"]
[BlackElo "2511"]
[Annotator "TA"]
[PlyCount "75"]
[EventDate "2024.06.24"]
[EventType "swiss"]
[EventCountry "UGA"]
[SourceTitle "playchess.com"]
[Source "ChessBase"]
[SourceQuality "1"]
[TimeControl "5400+30"]

{[%evp 9,75,0,0,0,0,0,0,0,26,46,37,42,45,21,16,12,42,39,81,63,103,47,106,114,131,58,138,111,209,220,213,182,172,167,181,138,150,127,135,139,138,141,139,140,133,120,133,109,235,239,225,226,219,154,566,564,575,574,599,599,825,756,6464,6170,6170,5922,5029,2033]} 1. e4 {[%emt 0:00:11]} c6 {[%emt 0:00:07]} 2. Nf3 {[%emt 0:00:22]} d5 {[%emt 0:00:05]} 3. Nc3 {[%emt 0:00:05]} Bg4 {[%emt 0:00:04]} 4. Be2 {[%emt 0:00:07]} Nf6 {[%emt 0:01:15]} 5. e5 {[%emt 0:00:34]} Nfd7 {[%emt 0:00:05]} 6. d4 {[%emt 0:00:16]} e6 {[%emt 0:00:06]} 7. Ng5 {[%emt 0:00:17]} Bxe2 {[%emt 0:03:06]} 8. Qxe2 {[%emt 0:00:06] The position is equal.} Bb4 {[%emt 0:05:37][%cal Bf8b4,Bb4a5,Ba5c7,Bc7d6][%mdl 32]} 9. Qh5 {[%emt 0:01:53][%csl LRe6,LRf7,LRh7]} Qe7 {[%emt 0:00:27]} 10. O-O {[%emt 0:13:26]} (10. Nxh7 $2 Kd8 (10... Nf8 $2 11. Nf6+ gxf6 12. Qxh8 $18) 11. Bf4 g6 $17) 10... h6 {[%emt 0:00:45]} 11. f4 {[%emt 0:05:56]} g6 {[%emt 0:01:52]} 12. Qh3 {[%emt 0:00:06]} Na6 {[%emt 0:00:43]} 13. Ne2 {[%emt 0:06:09]} Ba5 {[%emt 0:01:43]} 14. c3 {[%emt 0:00:41]} Bc7 {[%emt 0:00:35]} 15. b4 {[%emt 0:01:02]} (15. a4 $16) 15... O-O-O {[%emt 0:00:35]} (15... Nb6 $14) 16. Nf3 $16 {[%emt 0:00:20][%cal Bg5f3,Bf3e5,Be5g6,Bg6f4][%mdl 32]} f5 {[%emt 0:00:47]} 17. exf6 {[%emt 0:02:32]} (17. a4 $16) 17... Nxf6 {[%emt 0:01:22]} ({Black should play} 17... Qxf6 $14 18. Ne5 Nab8) 18. Ne5 {[%emt 0:02:59]} Rdg8 {[%emt 0:00:36]} (18... Bxe5 $16 19. fxe5 Ne4) 19. a4 $18 {[%emt 0:03:46]} Bd6 {[%emt 0:00:45]} 20. Qd3 {[%emt 0:01:47]} Nc7 {[%emt 0:04:05]} 21. b5 {[%emt 0:04:07]} ({Don't do} 21. Nxg6 Qg7 22. f5 (22. Nxh8 $2 Qxg2#) 22... Ne4 $16) 21... c5 {[%emt 0:00:57]} 22. Nxg6 {[%emt 0:09:50]} Qg7 {[%emt 0:00:47]} 23. f5 {[%emt 0:00:13]} (23. Nxh8 $2 Qxg2#) 23... exf5 {[%emt 0:01:10]} 24. Qxf5+ {[%emt 0:01:18]} (24. Nxh8 $2 Qxg2#) 24... Nd7 {[%emt 0:00:22][%cal Bf6d7,Bd7e5,Be5c4][%mdl 32]} 25. Nef4 {[%emt 0:03:27]} (25. Nxh8 $2 Qxg2#) 25... Bxf4 {[%emt 0:02:27]} 26. Nxf4 {[%emt 0:00:20] Hoping for Ba3.} cxd4 {[%emt 0:01:10]} 27. Ba3 {[%emt 0:04:59] cxd4 is the strong threat.} (27. Nxd5 $2 Qxg2#) 27... dxc3 {[%emt 0:05:07] [#]} 28. Rad1 {[%emt 0:05:40][%cal Oa3d6] Inhibits Qd4+. Active counter play!} (28. Nxd5 $2 Qxg2#) 28... Qg4 {[%emt 0:19:08]} (28... Re8 $16) 29. Qd3 {[%emt 0:03:33]} (29. Nxd5 $2 Qxg2#) 29... Ne5 {[%emt 0:02:40]} 30. Qxc3 {[%emt 0:00:34]} Nc4 {[%emt 0:00:01]} 31. Rxd5 {[%emt 0:03:32]} (31. Nxd5 $2 Qxg2#) 31... Nxd5 $2 {[%emt 0:03:27] Loses the game.} (31... Nxa3 $16 32. Rc5 Qg7) 32. Qxc4+ {[%emt 0:00:09] White is clearly winning.} Nc7 {[%emt 0:00:01]} 33. Rc1 {[%emt 0:02:08] Black is weak on the dark squares} Rh7 {[%emt 0:03:41]} 34. Bd6 {[%emt 0:04:04]} Rgg7 {[%emt 0:03:25]} 35. Qe4 {[%emt 0:03:35][%cal Re4e8] [#]} Kb8 {[%emt 0:03:41]} 36. h3 {[%emt 0:01:17]} Qc8 {[%emt 0:00:55]} 37. Rxc7 {[%emt 0:00:16]} Rxc7 {[%emt 0:00:14]} 38. Qxh7 {[%emt 0:00:10] Weighted Error Value: White=0.16 (very precise) /Black=0.38.  Loses game:     	---       	Black=1      Mistake:       	White=2     	Black=4      Inaccurate:     	---       	Black=6      OK:         	White=10    	Black=10     Best:        	White=5     	Black=2} 1-0

[Event "FISU WUMSCC Men 2024"]
[Site "Entebbe"]
[Date "2024.06.25"]
[Round "2.2"]
[White "Szpar, Milosz"]
[Black "Thilakarathne, G M H"]
[Result "1-0"]
[ECO "B53"]
[WhiteElo "2497"]
[BlackElo "2356"]
[Annotator "TA"]
[PlyCount "85"]
[EventDate "2024.06.24"]
[EventType "swiss"]
[EventCountry "UGA"]
[SourceTitle "playchess.com"]
[Source "ChessBase"]
[SourceQuality "1"]
[TimeControl "5400+30"]

{[%evp 9,85,19,14,12,24,12,31,0,0,-8,18,0,29,34,25,17,61,17,27,20,47,47,67,6,19,0,12,0,0,0,3,0,11,9,36,-52,21,16,20,21,21,20,21,0,30,0,0,-10,117,133,121,121,166,150,154,150,146,142,268,255,258,257,564,548,627,606,719,721,862,823,973,882,1463,970,1610,1539,29985,29986]} 1. e4 {[%emt 0:00:02]} c5 {[%emt 0:02:36]} 2. Nf3 {[%emt 0:00:15]} d6 {[%emt 0:00:05]} 3. d4 {[%emt 0:00:06]} cxd4 {[%emt 0:00:04]} 4. Qxd4 {[%emt 0:00:07]} Nc6 {[%emt 0:00:29]} 5. Qe3 {[%emt 0:04:09]} Nf6 {[%emt 0:01:45]} 6. Be2 {[%emt 0:00:09] B53: Sicilian: 2...d6: Lines with Qxd4.} g6 {[%emt 0:00:38]} 7. O-O {[%emt 0:00:12]} Bg7 {[%emt 0:00:03]} 8. h3 {[%emt 0:01:02]} O-O {[%emt 0:00:18]} 9. Rd1 {[%emt 0:06:54]} Be6 {[%emt 0:00:30] 9...Be6 is a critical line.} 10. Nc3 Nd7 {[%emt 0:00:30]} 11. Nd5 {[%emt 0:01:00]} Rc8 {[%emt 0:00:30]} 12. c3 {[%emt 0:00:30]} Na5 $146 {[%emt 0:00:30]} ({Predecessor:} 12... a6 13. Qf4 Nde5 14. Qh4 Nxf3+ 15. Bxf3 Bd7 16. Bg5 f6 17. Be3 Ne5 18. Be2 Nc4 19. Bxc4 Rxc4 {1-0 Blomqvist,E (2537)-Wagner,D (2581) Titled Tuesday intern op 26th May blitz 2020 (1)}) 13. Bf1 {[%emt 0:00:30]} ({Much worse is} 13. Qxa7 Bxd5 14. Rxd5 (14. exd5 Nc5 $17) 14... Ra8 $11) 13... a6 {[%emt 0:00:30]} 14. Qe2 {[%emt 0:00:30]} h6 {[%emt 1:00:48]} 15. Bf4 {[%emt 0:30:38]} b5 {[%emt 0:07:25]} 16. Re1 {[%emt 0:09:21] White is more active.} ({White should try} 16. a4 $14) 16... Re8 {[%emt 0:04:26]} 17. Rad1 {[%emt 0:03:40]} Nc4 {[%emt 0:01:01]} 18. Bc1 {[%emt 0:00:46]} Bxd5 {[%emt 0:01:52]} 19. Rxd5 {[%emt 0:06:21]} Kh7 {[%emt 0:03:33]} 20. h4 {[%emt 0:02:29]} e6 {[%emt 0:05:47]} 21. Rdd1 {[%emt 0:00:51]} Qe7 {[%emt 0:00:40]} 22. Nd4 {[%emt 0:01:09]} (22. g3 $14) 22... Ndb6 {[%emt 0:04:12]} (22... Qxh4 $15 23. Rd3 Qd8) 23. g3 $11 {[%emt 0:02:02]} Na4 {[%emt 0:01:24]} 24. Qc2 {[%emt 0:03:27]} Ne5 {[%emt 0:00:54]} 25. Bh3 {[%emt 0:06:49]} h5 {[%emt 0:00:46]} 26. Qe2 {[%emt 0:00:12]} Rc5 {[%emt 0:00:30]} 27. Kg2 {[%emt 0:00:30]} Qb7 {[%emt 0:00:30]} 28. Nb3 {[%emt 0:00:30][%csl LRc5,LRd6] [#]} Rxc3 {[%emt 0:00:30]} 29. bxc3 $16 {[%emt 0:00:30]} Nxc3 {[%emt 0:00:30]} 30. Qc2 {[%emt 0:00:30]} Nxd1 {[%emt 0:00:30]} 31. Qxd1 {[%emt 0:00:30]} Nc4 {[%emt 0:00:16]} 32. Kg1 {[%emt 0:04:40]} a5 {[%emt 0:00:30]} 33. Nd2 {[%emt 0:00:30]} Nb6 {[%emt 0:01:50]} (33... Ne5 $16 34. Nf3 Nxf3+ 35. Qxf3 b4) 34. g4 $18 {[%emt 0:04:14]} hxg4 {[%emt 0:00:24]} 35. Qxg4 {[%emt 0:00:06]} f5 $2 {[%emt 0:00:35]} (35... Rh8 {is a better chance.} 36. h5 gxh5) 36. Qe2 {[%emt 0:02:07] exf5 would now be deadly.} Rf8 {[%emt 0:00:30]} 37. Qxb5 {[%emt 0:00:30]} Qc7 {[%emt 0:00:33]} 38. exf5 {[%emt 0:02:46]} gxf5 {[%emt 0:00:02]} 39. Nf3 {[%emt 0:00:42]} Bf6 {[%emt 0:00:10]} 40. Bg5 {[%emt 0:00:42]} Qc3 {[%emt 0:00:30]} 41. Re3 {[%emt 0:00:30]} Qa1+ {[%emt 0:00:30]} 42. Kg2 {[%emt 0:00:30]} Nd5 {[%emt 0:01:10]} 43. Rxe6 {[%emt 0:01:36]} 1-0

[Event "FISU WUMSCC Men 2024"]
[Site "Entebbe"]
[Date "2024.06.25"]
[Round "2.3"]
[White "Alrehaili, Ahmed Abdullah S"]
[Black "Gatineau, Yovann"]
[Result "0-1"]
[ECO "C00"]
[WhiteElo "2134"]
[BlackElo "2414"]
[Annotator "RC"]
[PlyCount "72"]
[EventDate "2024.06.24"]
[EventType "swiss"]
[EventCountry "UGA"]
[SourceTitle "playchess.com"]
[Source "ChessBase"]
[SourceQuality "1"]
[TimeControl "5400+30"]

1. e4 {[%emt 0:00:47]} e6 {[%emt 0:00:11]} 2. d3 {[%emt 0:00:53]} d5 {[%emt 0:00:13]} 3. Qe2 {[%emt 0:00:14]} Be7 {[%emt 0:00:07]} 4. Nf3 {[%emt 0:00:15]} Nf6 {[%emt 0:00:06]} 5. g3 {[%emt 0:00:26]} O-O {[%emt 0:00:11]} 6. Bg2 {[%emt 0:00:32]} b5 {[%emt 0:00:06]} 7. O-O {[%emt 0:01:53]} c5 {[%emt 0:00:07]} 8. Nbd2 {[%emt 0:08:21]} a5 {[%emt 1:33:29]} 9. exd5 {[%emt 0:03:21]} exd5 {[%emt 0:00:00]} 10. a4 {[%emt 0:00:37]} b4 {[%emt 0:00:00]} 11. Ne5 {[%emt 0:04:21]} Re8 {[%emt 0:00:00]} 12. Qd1 {[%emt 0:07:12]} Ra7 {[%emt 0:00:00]} 13. Re1 {[%emt 0:05:26]} Bd6 {[%emt 0:00:00]} 14. Nef3 {[%emt 0:03:23]} h6 {[%emt 0:00:00]} 15. Rxe8+ {[%emt 0:06:14]} Qxe8 {[%emt 0:00:00]} 16. b3 {[%emt 0:02:36]} Nfd7 {[%emt 0:00:00]} 17. d4 {[%emt 0:08:53]} Nc6 {[%emt 0:00:00]} 18. Bb2 {[%emt 0:03:37]} Nf8 {[%emt 0:00:00]} 19. dxc5 {[%emt 0:16:12]} Bxc5 {[%emt 0:00:00]} 20. Ne1 {[%emt 0:02:13]} Bd4 {[%emt 0:00:00]} 21. Bxd4 {[%emt 0:03:59]} Nxd4 {[%emt 0:00:00]} 22. Bf1 {[%emt 0:01:33]} Ba6 {[%emt 0:00:00]} 23. Bxa6 {[%emt 0:01:18]} Rxa6 {[%emt 0:00:00]} 24. Ndf3 {[%emt 0:04:38]} Ne2+ {[%emt 0:00:00]} 25. Kf1 {[%emt 0:00:19]} Nc3 {[%emt 0:00:00]} 26. Qd3 {[%emt 0:00:07]} Rf6 {[%emt 0:00:00]} 27. Ng2 {[%emt 0:05:13]} Ne6 {[%emt 0:00:00]} 28. Re1 {[%emt 0:00:41]} Qc8 {[%emt 0:00:00]} 29. Re3 {[%emt 0:02:45]} Nc5 {[%emt 0:00:00]} 30. Qd4 {[%emt 0:00:56]} N5e4 {[%emt 0:00:00]} 31. Nge1 {[%emt 0:03:43]} Qh3+ {[%emt 0:00:00]} 32. Kg1 {[%emt 0:00:01]} g5 {[%emt 0:00:00]} 33. Rxe4 {[%emt 0:03:46]} dxe4 {[%emt 0:00:00]} 34. Qxf6 {[%emt 0:00:33]} Ne2+ {[%emt 0:00:02]} 35. Kh1 {[%emt 0:00:03]} Qf1+ {[%emt 0:00:04]} 36. Ng1 {[%emt 0:00:10]} Qxg1# {[%emt 0:00:06]} 0-1

[Event "FISU WUMSCC Men 2024"]
[Site "Entebbe"]
[Date "2024.06.25"]
[Round "2.4"]
[White "Jakab, Bela"]
[Black "Walter, Szymon"]
[Result "1/2-1/2"]
[ECO "B22"]
[WhiteElo "2390"]
[BlackElo "2313"]
[Annotator "RC"]
[PlyCount "48"]
[EventDate "2024.06.24"]
[EventType "swiss"]
[EventCountry "UGA"]
[SourceTitle "playchess.com"]
[Source "ChessBase"]
[SourceQuality "1"]
[TimeControl "5400+30"]

1. e4 {[%emt 0:00:02]} c5 {[%emt 0:00:13]} 2. c3 {[%emt 0:00:05]} d5 {[%emt 0:01:31]} 3. exd5 {[%emt 0:00:07]} Qxd5 {[%emt 0:00:07]} 4. d4 {[%emt 0:00:07]} cxd4 {[%emt 0:01:21]} 5. cxd4 {[%emt 0:00:05]} e5 {[%emt 0:00:18]} 6. Nf3 {[%emt 0:06:58]} exd4 {[%emt 0:00:45]} 7. Nxd4 {[%emt 0:02:01]} Bc5 {[%emt 0:00:57]} 8. Be3 {[%emt 0:00:28]} Nf6 {[%emt 0:01:14]} 9. Nc3 {[%emt 0:00:19]} Qe5 {[%emt 0:00:36]} 10. Bb5+ {[%emt 0:03:37]} Bd7 {[%emt 0:00:39]} 11. O-O {[%emt 0:02:24]} O-O {[%emt 0:00:29]} 12. Re1 {[%emt 0:02:25]} Bxb5 {[%emt 0:00:45]} 13. Ndxb5 {[%emt 0:01:14]} Nc6 {[%emt 0:01:37]} 14. Bxc5 {[%emt 0:10:43]} Qxc5 {[%emt 0:00:08]} 15. Qd6 {[%emt 0:00:44]} Qxd6 {[%emt 0:02:48]} 16. Nxd6 {[%emt 0:00:02]} Rfd8 {[%emt 0:01:08]} 17. Rad1 {[%emt 0:01:20]} Kf8 {[%emt 0:03:08]} 18. Kf1 {[%emt 0:01:20]} Rd7 {[%emt 0:00:56]} 19. Nde4 {[%emt 0:02:08]} Rxd1 {[%emt 0:03:10]} 20. Rxd1 {[%emt 0:00:07]} Nxe4 {[%emt 0:00:28]} 21. Nxe4 {[%emt 0:00:02]} Rd8 {[%emt 0:01:27]} 22. Rxd8+ {[%emt 0:03:08]} Nxd8 {[%emt 0:00:06]} 23. Ke2 {[%emt 0:00:42]} Ke7 {[%emt 0:00:22]} 24. g3 {[%emt 0:00:47]} Nc6 {[%emt 0:01:40]} 1/2-1/2

[Event "FISU WUMSCC Men 2024"]
[Site "Entebbe"]
[Date "2024.06.25"]
[Round "2.5"]
[White "Musasizi, Emmanuel"]
[Black "Mladek, Richard"]
[Result "0-1"]
[ECO "B25"]
[WhiteElo "1966"]
[BlackElo "2385"]
[Annotator "RC"]
[PlyCount "104"]
[EventDate "2024.06.24"]
[EventType "swiss"]
[EventCountry "UGA"]
[SourceTitle "playchess.com"]
[Source "ChessBase"]
[SourceQuality "1"]
[TimeControl "5400+30"]

1. e4 {[%emt 0:02:26]} c5 {[%emt 0:00:05]} 2. Nf3 {[%emt 0:00:11]} d6 {[%emt 0:00:11]} 3. d3 {[%emt 0:00:10]} g6 {[%emt 0:00:39]} 4. g3 {[%emt 0:00:08]} Bg7 {[%emt 0:00:05]} 5. Bg2 {[%emt 0:00:07]} Nc6 {[%emt 0:00:02]} 6. O-O {[%emt 0:00:29]} e5 {[%emt 0:01:03]} 7. Nc3 {[%emt 0:00:55]} Nge7 {[%emt 0:00:27]} 8. Nd2 {[%emt 0:03:27]} O-O {[%emt 0:01:37]} 9. Nc4 {[%emt 0:03:56]} Be6 {[%emt 0:01:01]} 10. Nd5 {[%emt 0:04:54]} Qd7 {[%emt 0:05:19]} 11. Bh6 {[%emt 0:02:59]} b5 {[%emt 0:10:14]} 12. Nce3 {[%emt 0:03:39]} Rab8 {[%emt 0:01:44]} 13. Bxg7 {[%emt 0:02:57]} Kxg7 {[%emt 0:00:01]} 14. f4 {[%emt 0:02:18]} exf4 {[%emt 0:08:15]} 15. Rxf4 {[%emt 0:06:26]} Bxd5 {[%emt 0:03:03]} 16. Nxd5 {[%emt 0:01:52]} Nxd5 {[%emt 0:01:11]} 17. exd5 {[%emt 0:00:14]} Ne5 {[%emt 0:00:09]} 18. Qd2 {[%emt 0:01:40]} b4 {[%emt 0:08:12]} 19. Raf1 {[%emt 0:03:13]} a5 {[%emt 0:03:42]} 20. b3 {[%emt 0:03:16]} f5 {[%emt 0:03:26]} 21. h3 Qe7 {[%emt 0:00:30]} 22. Qf2 Rbe8 {[%emt 0:00:30]} 23. a3 Nf7 {[%emt 0:00:30]} 24. axb4 axb4 {[%emt 0:00:30]} 25. d4 Qe3 {[%emt 0:00:30]} 26. dxc5 dxc5 {[%emt 0:00:30]} 27. Qxe3 Rxe3 {[%emt 0:00:30]} 28. g4 Nd6 {[%emt 0:00:30]} 29. gxf5 Rxf5 {[%emt 0:00:30]} 30. Rxf5 gxf5 {[%emt 0:00:30]} 31. Ra1 Kf6 {[%emt 0:00:30]} 32. Ra7 Rc3 {[%emt 0:00:30]} 33. Rd7 Ke5 {[%emt 0:00:30]} 34. Re7+ Kf4 {[%emt 0:00:30]} 35. Re6 Ne4 {[%emt 0:00:30]} 36. d6 Rxc2 {[%emt 0:00:30]} 37. d7 Rd2 {[%emt 0:00:30]} 38. Re7 Nf6 {[%emt 0:00:30]} 39. Bc6 c4 {[%emt 0:00:30]} 40. bxc4 b3 {[%emt 0:00:30]} 41. d8=Q Rxd8 {[%emt 0:00:30]} 42. Rb7 Rd1+ {[%emt 0:00:30]} 43. Kf2 Rb1 {[%emt 0:00:30]} 44. Ke2 Ne4 {[%emt 0:00:30]} 45. Bxe4 Kxe4 {[%emt 0:00:30]} 46. Kd2 f4 {[%emt 0:00:30]} 47. Re7+ Kd4 {[%emt 0:00:30]} 48. Rxh7 Rb2+ {[%emt 0:00:30]} 49. Kc1 Rc2+ {[%emt 0:00:30]} 50. Kb1 f3 {[%emt 0:00:30]} 51. Rf7 f2 {[%emt 0:00:30]} 52. h4 Re2 {[%emt 0:00:30]} 0-1

[Event "FISU WUMSCC Men 2024"]
[Site "Entebbe"]
[Date "2024.06.25"]
[Round "2.6"]
[White "Defromont, Benjamin"]
[Black "Nyola Wasswa Mark"]
[Result "1-0"]
[ECO "B52"]
[WhiteElo "2380"]
[BlackElo "2067"]
[Annotator "RC"]
[PlyCount "65"]
[EventDate "2024.06.24"]
[EventType "swiss"]
[EventCountry "UGA"]
[SourceTitle "playchess.com"]
[Source "ChessBase"]
[SourceQuality "1"]
[TimeControl "5400+30"]

1. e4 {[%emt 0:00:31]} c5 {[%emt 0:00:05]} 2. Nf3 {[%emt 0:00:05]} d6 {[%emt 0:00:11]} 3. Bb5+ {[%emt 0:00:04]} Bd7 {[%emt 0:00:46]} 4. Bxd7+ {[%emt 0:00:43]} Qxd7 {[%emt 0:00:15]} 5. O-O {[%emt 0:00:08]} Nf6 {[%emt 0:00:50]} 6. Re1 {[%emt 0:01:46]} Nc6 {[%emt 0:01:19]} 7. c3 {[%emt 0:00:12]} e5 {[%emt 0:02:13]} 8. d4 {[%emt 0:00:22]} Be7 {[%emt 0:03:27]} 9. d5 {[%emt 0:00:51]} Nd8 {[%emt 0:01:32]} 10. a4 {[%emt 0:00:41]} O-O {[%emt 0:03:27]} 11. Na3 {[%emt 0:04:37]} Ne8 {[%emt 0:01:38]} 12. Qd3 {[%emt 0:05:23]} f5 {[%emt 0:06:44]} 13. exf5 {[%emt 0:00:57]} Rxf5 {[%emt 0:04:41]} 14. Nc4 {[%emt 0:03:52]} Rf8 {[%emt 0:05:43]} 15. Nfd2 {[%emt 0:10:52]} Nf6 {[%emt 0:09:25]} 16. Ne4 {[%emt 0:05:35]} Nxe4 {[%emt 0:02:08]} 17. Rxe4 {[%emt 0:01:02]} Qf5 {[%emt 0:00:42]} 18. Qe2 {[%emt 0:11:08]} Qf7 {[%emt 0:06:04]} 19. f4 Qxd5 {[%emt 0:00:30]} 20. fxe5 Nc6 {[%emt 0:00:30]} 21. Bf4 dxe5 {[%emt 0:00:30]} 22. Bxe5 Rad8 {[%emt 0:00:30]} 23. Re1 Bf6 {[%emt 0:00:30]} 24. Bc7 Rc8 {[%emt 0:00:30]} 25. Bd6 Rfd8 {[%emt 0:00:30]} 26. Rd1 Qg5 {[%emt 0:00:30]} 27. h4 Qg6 {[%emt 0:00:30]} 28. h5 Qg5 {[%emt 0:00:30]} 29. Rg4 Qh6 {[%emt 0:00:30]} 30. Bf4 Rxd1+ {[%emt 0:00:30]} 31. Qxd1 g5 {[%emt 0:00:30]} 32. hxg6 Qh5 {[%emt 0:00:30]} 33. gxh7+ 1-0

[Event "FISU WUMSCC Men 2024"]
[Site "Entebbe"]
[Date "2024.06.25"]
[Round "2.7"]
[White "Alharthi, Ahmed Mohammed A"]
[Black "Turcan, Richard"]
[Result "0-1"]
[ECO "A45"]
[WhiteElo "1951"]
[BlackElo "2374"]
[Annotator "RC"]
[PlyCount "82"]
[EventDate "2024.06.24"]
[EventType "swiss"]
[EventCountry "UGA"]
[SourceTitle "playchess.com"]
[Source "ChessBase"]
[SourceQuality "1"]
[TimeControl "5400+30"]

1. d4 {[%emt 0:00:04]} Nf6 {[%emt 0:00:19]} 2. Bf4 {[%emt 0:00:32]} c5 {[%emt 0:00:36]} 3. dxc5 {[%emt 0:01:46]} Na6 {[%emt 0:03:58]} 4. Nc3 {[%emt 0:04:48]} Nxc5 {[%emt 0:04:10]} 5. f3 {[%emt 0:02:33]} d6 {[%emt 0:09:38]} 6. e4 {[%emt 0:03:13]} Bd7 {[%emt 0:00:26]} 7. Bc4 {[%emt 0:05:42]} g6 {[%emt 0:05:41]} 8. Nge2 {[%emt 0:07:17]} Bg7 {[%emt 0:01:24]} 9. Qd2 {[%emt 0:01:34]} Rc8 {[%emt 0:05:43]} 10. O-O-O {[%emt 0:17:46]} Ncxe4 {[%emt 0:17:43]} 11. Bxf7+ {[%emt 0:02:08]} Kxf7 {[%emt 0:00:59]} 12. fxe4 {[%emt 0:49:07]} Qa5 13. Rhf1 Bg4 14. a3 Rc4 15. h3 Bxe2 16. Qxe2 Rhc8 17. e5 Rxc3 18. bxc3 Qxa3+ 19. Kd2 Qxc3+ 20. Kc1 Qa1+ 21. Kd2 Qa4 22. Qd3 Qa5+ 23. Ke2 Rc3 24. Qd4 Rxc2+ 25. Kd3 dxe5 26. Bxe5 Rc5 27. Bxf6 Qb5+ 28. Ke3 Bxf6 29. Rxf6+ exf6 30. Qd7+ Kf8 31. Qd6+ Kg7 32. Qe7+ Kh6 33. Qf8+ Kg5 34. h4+ Kg4 35. Rd4+ Kg3 36. Qd6+ Re5+ 37. Kd2 Kxg2 38. Rg4+ Kf3 39. Rd4 Qb2+ 40. Kd3 Qb3+ 41. Kd2 {[%emt 0:00:00]} Re2+ 0-1

[Event "FISU WUMSCC Men 2024"]
[Site "Entebbe"]
[Date "2024.06.25"]
[Round "2.8"]
[White "El Tayaari, Najmedin Sasi"]
[Black "Alshnaiber, Yazeed"]
[Result "0-1"]
[ECO "C54"]
[WhiteElo "1787"]
[BlackElo "1831"]
[Annotator "NA RC"]
[PlyCount "136"]
[EventDate "2024.06.24"]
[EventType "swiss"]
[EventCountry "UGA"]
[SourceTitle "playchess.com"]
[Source "ChessBase"]
[SourceQuality "1"]
[TimeControl "5400+30"]

1. e4 {[%emt 0:00:04]} e5 {[%emt 0:00:24]} 2. Nf3 {[%emt 0:00:19]} Nc6 {[%emt 0:00:09]} 3. Bc4 {[%emt 0:00:20]} Bc5 {[%emt 0:01:40]} 4. c3 {[%emt 0:00:12]} Nf6 {[%emt 0:00:09]} 5. d3 {[%emt 0:00:27]} a6 {[%emt 0:00:35]} 6. a4 {[%emt 0:00:18]} d6 {[%emt 0:00:16]} 7. h3 {[%emt 0:00:09]} h6 {[%emt 0:00:16]} 8. Nbd2 {[%emt 0:00:36]} Ba7 {[%emt 0:00:33]} 9. Nf1 {[%emt 0:07:07]} O-O {[%emt 0:02:13]} 10. Ng3 {[%emt 0:01:15]} Re8 {[%emt 0:02:47]} 11. O-O {[%emt 0:00:49]} Ne7 {[%emt 0:01:27]} 12. Re1 {[%emt 0:05:52]} Ng6 {[%emt 0:00:42]} 13. Qb3 {[%emt 0:01:08]} Qe7 {[%emt 0:05:31]} 14. d4 {[%emt 0:05:34]} Rb8 {[%emt 0:02:38]} 15. Be3 {[%emt 0:08:00]} c5 {[%emt 0:26:02]} 16. Nf5 {[%emt 0:11:15]} Qf8 {[%emt 0:14:27]} 17. Nxd6 {[%emt 0:02:54]} Qxd6 {[%emt 0:07:10]} 18. Bxf7+ {[%emt 0:00:08]} Kh7 {[%emt 0:00:08]} 19. Bxe8 {[%emt 0:02:12]} Nxe8 {[%emt 0:00:26]} 20. dxc5 {[%emt 0:03:16]} Qf8 {[%emt 0:16:49]} 21. Nd2 {[%emt 0:21:41]} Bxc5 {[%emt 0:01:59]} 22. Bxc5 {[%emt 0:01:11]} Qxc5 {[%emt 0:00:06]} 23. Qd5 {[%emt 0:00:52]} Qe7 {[%emt 0:01:21]} 24. Nf3 {[%emt 0:03:27]} Be6 {[%emt 0:02:54]} 25. Qa5 {[%emt 0:02:56]} Qf6 {[%emt 0:00:30]} 26. Re3 {[%emt 0:02:30]} Rd8 {[%emt 0:00:44]} 27. h4 {[%emt 0:01:19]} Bg4 {[%emt 0:05:59]} 28. Rae1 {[%emt 0:05:41]} Rd7 {[%emt 0:01:33]} 29. Qc5 {[%emt 0:01:33]} b6 {[%emt 0:00:24]} 30. Qc8 {[%emt 0:01:46]} Nc7 {[%emt 0:03:16]} 31. Nh2 {[%emt 0:04:34]} Be6 {[%emt 0:00:14]} 32. Qb8 {[%emt 0:01:52]} Qxh4 {[%emt 0:01:21]} 33. Qxb6 {[%emt 0:00:32]} Rf7 {[%emt 0:01:08]} 34. Rg3 {[%emt 0:01:09]} Nf4 {[%emt 0:00:40]} 35. Nf3 {[%emt 0:00:37]} Qf6 {[%emt 0:00:05]} 36. Qd6 {[%emt 0:00:56]} Nh5 {[%emt 0:01:02]} 37. Qxe5 {[%emt 0:02:32]} Nxg3 {[%emt 0:00:05]} 38. Qxg3 {[%emt 0:00:21]} Bb3 {[%emt 0:00:45]} 39. e5 {[%emt 0:00:33]} Qf4 {[%emt 0:00:34]} 40. Qxf4 {[%emt 0:00:21]} Rxf4 {[%emt 0:00:06]} 41. a5 {[%emt 0:00:15]} Ne6 {[%emt 0:00:11]} 42. Nd2 {[%emt 0:00:38]} Bd5 {[%emt 0:00:29]} 43. b4 {[%emt 0:00:21]} Kg6 {[%emt 0:00:58]} 44. f3 {[%emt 0:00:29]} Rf8 {[%emt 0:01:13]} 45. c4 {[%emt 0:00:17]} Bc6 {[%emt 0:00:01]} 46. Ne4 {[%emt 0:00:46]} Bxe4 {[%emt 0:00:28]} 47. fxe4 {[%emt 0:00:27]} Rc8 {[%emt 0:00:14]} 48. Rd1 {[%emt 0:00:28]} Rxc4 {[%emt 0:00:55]} 49. Rd6 {[%emt 0:00:30]} Kf7 {[%emt 0:00:06]} 50. Rb6 {[%emt 0:01:13]} Nc7 {[%emt 0:00:38]} 51. Rb7 {[%emt 0:00:31]} Ke6 {[%emt 0:00:23]} 52. Kf2 {[%emt 0:00:19]} Kxe5 {[%emt 0:00:41]} 53. Ke3 {[%emt 0:00:43]} Rxe4+ {[%emt 0:01:00]} 54. Kf3 {[%emt 0:00:48]} Rc4 {[%emt 0:00:14]} 55. Ke2 {[%emt 0:01:06]} g5 {[%emt 0:00:31]} 56. Kd3 {[%emt 0:00:33]} Rd4+ {[%emt 0:00:16]} 57. Ke2 {[%emt 0:00:16]} Nd5 {[%emt 0:00:50]} 58. Kf2 {[%emt 0:01:01]} Rxb4 {[%emt 0:00:16]} 59. Ra7 {[%emt 0:00:08]} Ra4 {[%emt 0:00:35]} 60. Rxa6 {[%emt 0:01:23]} h5 {[%emt 0:00:13]} 61. Ra8 {[%emt 0:00:00]} Nb4 {[%emt 0:00:48]} 62. Kf3 {[%emt 0:00:00]} Ra3+ {[%emt 0:00:06]} 63. Ke2 {[%emt 0:00:00]} Kf4 {[%emt 0:00:05]} 64. Rf8+ {[%emt 0:00:05]} Kg4 {[%emt 0:00:28]} 65. Rb8 {[%emt 0:00:07]} Na6 {[%emt 0:00:15]} 66. Rb5 {[%emt 0:00:15]} Ra2+ {[%emt 0:00:08]} 67. Kf1 {[%emt 0:00:14]} Kf4 {[%emt 0:00:12]} 68. Kg1 {[%emt 0:00:25]} h4 {[%emt 0:00:12]} 0-1